[Event "Titled Tuesday Blitz July 4 Early 2023"]
[White "Nunez V, Gustavo Eduardo"]
[Black "Martinez Ramirez, Lennis"]
[WhiteFideId "4403690"]
[BlackFideId "3509079"]
[WhiteElo "2471"]
[BlackElo "2627"]
[Result "0-1"]
[Round "7"]
[TimeControl "180+2"]
[Date "2023.07.04"]
[WhiteClock "0:00:56"]
[BlackClock "0:01:59"]
[Board "91"]

1. e4 {[%clk 0:03:00]}  c6 {[%clk 0:02:59]} 2. d3 {[%clk 0:03:00]}  g6 {[%clk 0:03:00]} 3. Nd2 {[%clk 0:03:00]}  Bg7 {[%clk 0:02:59]} 4. g3 {[%clk 0:03:00]}  a5 {[%clk 0:03:00]} 5. Bg2 {[%clk 0:03:01]}  a4 {[%clk 0:03:01]} 6. a3 {[%clk 0:03:00]}  d5 {[%clk 0:03:00]} 7. Ne2 {[%clk 0:02:58]}  Nf6 {[%clk 0:03:01]} 8. O-O {[%clk 0:02:58]}  O-O {[%clk 0:03:00]} 9. h3 {[%clk 0:02:58]}  dxe4 {[%clk 0:03:00]} 10. Nxe4 {[%clk 0:02:58]}  Nxe4 {[%clk 0:02:59]} 11. dxe4 {[%clk 0:02:58]}  Qb6 {[%clk 0:02:58]} 12. c3 {[%clk 0:02:57]}  Rd8 {[%clk 0:02:57]} 13. Qc2 {[%clk 0:02:57]}  Be6 {[%clk 0:02:57]} 14. Be3 {[%clk 0:02:54]}  Qb3 {[%clk 0:02:56]} 15. Qxb3 {[%clk 0:02:52]}  Bxb3 {[%clk 0:02:57]} 16. Bd4 {[%clk 0:02:51]}  e5 {[%clk 0:02:56]} 17. Bb6 {[%clk 0:02:50]}  Rd2 {[%clk 0:02:55]} 18. Nc1 {[%clk 0:02:39]}  Bc4 {[%clk 0:02:53]} 19. Re1 {[%clk 0:02:37]}  Rxb2 {[%clk 0:02:53]} 20. Be3 {[%clk 0:02:32]}  Nd7 {[%clk 0:02:53]} 21. Bf1 {[%clk 0:02:31]}  Bxf1 {[%clk 0:02:50]} 22. Kxf1 {[%clk 0:02:32]}  Nf8 {[%clk 0:02:45]} 23. Nd3 {[%clk 0:02:31]}  Rb3 {[%clk 0:02:45]} 24. Rec1 {[%clk 0:02:30]}  b6 {[%clk 0:02:43]} 25. Nb4 {[%clk 0:02:29]}  Rc8 {[%clk 0:02:40]} 26. Bxb6 {[%clk 0:02:23]}  Bh6 {[%clk 0:02:39]} 27. Rc2 {[%clk 0:02:19]}  Ne6 {[%clk 0:02:39]} 28. Ke2 {[%clk 0:02:06]}  f5 {[%clk 0:02:35]} 29. Be3 {[%clk 0:01:56]}  f4 {[%clk 0:02:34]} 30. Bc1 {[%clk 0:01:46]}  Kf7 {[%clk 0:02:30]} 31. Nd3 {[%clk 0:01:45]}  Kf6 {[%clk 0:02:29]} 32. Bb2 {[%clk 0:01:38]}  c5 {[%clk 0:02:26]} 33. c4 {[%clk 0:01:28]}  f3+ {[%clk 0:02:16]} 34. Kxf3 {[%clk 0:01:24]}  Rxd3+ {[%clk 0:02:15]} 35. Ke2 {[%clk 0:01:25]}  Rb3 {[%clk 0:02:14]} 36. Rd1 {[%clk 0:01:23]}  Nd4+ {[%clk 0:02:14]} 37. Bxd4 {[%clk 0:01:23]}  cxd4 {[%clk 0:02:15]} 38. c5 {[%clk 0:01:21]}  Bf8 {[%clk 0:02:11]} 39. c6 {[%clk 0:01:20]}  Bxa3 {[%clk 0:02:11]} 40. Rd3 {[%clk 0:01:17]}  Bd6 {[%clk 0:02:09]} 41. Rc4 {[%clk 0:01:14]}  Rb2+ {[%clk 0:02:08]} 42. Kf3 {[%clk 0:01:12]}  a3 {[%clk 0:02:09]} 43. Kg4 {[%clk 0:01:07]}  a2 {[%clk 0:02:08]} 44. Ra4 {[%clk 0:01:05]}  Rxf2 {[%clk 0:02:08]} 45. Rf3+ {[%clk 0:01:01]}  Rxf3 {[%clk 0:02:06]} 46. Kxf3 {[%clk 0:01:02]}  Rxc6 {[%clk 0:02:06]} 47. Rxa2 {[%clk 0:01:03]}  Rc3+ {[%clk 0:02:07]} 48. Kg4 {[%clk 0:01:01]}  h5+ {[%clk 0:02:03]} 49. Kh4 {[%clk 0:01:01]}  Be7 {[%clk 0:02:02]} 50. g4 {[%clk 0:00:55]}  g5+ {[%clk 0:01:59]} 51. Kxh5 {[%clk 0:00:56]}  Rxh3# {[%clk 0:01:59]} 0-1


[Site "https://www.chess.com"]

[Event "Titled Tuesday Blitz July 4 Early 2023"]
[White "Burmakin, Vladimir"]
[Black "Dobre, Claudiu-Cristian"]
[WhiteFideId "4105109"]
[BlackFideId "1211854"]
[WhiteElo "2612"]
[BlackElo "2458"]
[Result "1-0"]
[Round "7"]
[TimeControl "180+2"]
[Date "2023.07.04"]
[WhiteClock "0:00:08"]
[BlackClock "0:00:00"]
[Board "93"]

1. d4 {[%clk 0:03:00]}  d5 {[%clk 0:02:58]} 2. Nf3 {[%clk 0:03:00]}  Nf6 {[%clk 0:02:57]} 3. g3 {[%clk 0:03:00]}  Bg4 {[%clk 0:02:49]} 4. Bg2 {[%clk 0:02:58]}  e6 {[%clk 0:02:49]} 5. c4 {[%clk 0:02:55]}  c6 {[%clk 0:02:48]} 6. Qb3 {[%clk 0:02:51]}  Qb6 {[%clk 0:02:45]} 7. c5 {[%clk 0:02:51]}  Qxb3 {[%clk 0:02:45]} 8. axb3 {[%clk 0:02:50]}  Nbd7 {[%clk 0:02:43]} 9. b4 {[%clk 0:02:50]}  a6 {[%clk 0:02:44]} 10. Nc3 {[%clk 0:02:48]}  Rc8 {[%clk 0:02:43]} 11. Nd2 {[%clk 0:02:45]}  Be7 {[%clk 0:02:43]} 12. Nb3 {[%clk 0:02:45]}  Bd8 {[%clk 0:02:43]} 13. Na5 {[%clk 0:02:45]}  Bxa5 {[%clk 0:02:43]} 14. bxa5 {[%clk 0:02:45]}  Ke7 {[%clk 0:02:22]} 15. Bf4 {[%clk 0:02:43]}  Ne8 {[%clk 0:02:21]} 16. f3 {[%clk 0:02:40]}  Bh5 {[%clk 0:02:19]} 17. e4 {[%clk 0:02:39]}  f6 {[%clk 0:01:46]} 18. exd5 {[%clk 0:02:31]}  cxd5 {[%clk 0:01:41]} 19. b4 {[%clk 0:02:27]}  g5 {[%clk 0:01:35]} 20. Be3 {[%clk 0:02:22]}  Nb8 {[%clk 0:01:24]} 21. Kf2 {[%clk 0:02:17]}  Nc6 {[%clk 0:01:18]} 22. Rhb1 {[%clk 0:02:12]}  Nc7 {[%clk 0:01:14]} 23. Bf1 {[%clk 0:02:04]}  Bg6 {[%clk 0:01:10]} 24. Rb2 {[%clk 0:02:03]}  e5 {[%clk 0:01:01]} 25. Rd1 {[%clk 0:01:42]}  Rhd8 {[%clk 0:00:54]} 26. b5 {[%clk 0:01:32]}  axb5 {[%clk 0:00:46]} 27. Bxb5 {[%clk 0:01:30]}  Ne6 {[%clk 0:00:40]} 28. Bxc6 {[%clk 0:00:59]}  bxc6 {[%clk 0:00:39]} 29. Rb7+ {[%clk 0:00:46]}  Rd7 {[%clk 0:00:30]} 30. a6 {[%clk 0:00:41]}  Rxb7 {[%clk 0:00:30]} 31. axb7 {[%clk 0:00:41]}  Rb8 {[%clk 0:00:30]} 32. dxe5 {[%clk 0:00:35]}  fxe5 {[%clk 0:00:30]} 33. Nxd5+ {[%clk 0:00:33]}  cxd5 {[%clk 0:00:30]} 34. c6 {[%clk 0:00:32]}  d4 {[%clk 0:00:30]} 35. Bxg5+ {[%clk 0:00:28]}  Kd6 {[%clk 0:00:28]} 36. Bf6 {[%clk 0:00:29]}  Nc5 {[%clk 0:00:11]} 37. Bxe5+ {[%clk 0:00:24]}  Kxe5 {[%clk 0:00:09]} 38. c7 {[%clk 0:00:24]}  Rxb7 {[%clk 0:00:07]} 39. c8=Q {[%clk 0:00:23]}  Rb2+ {[%clk 0:00:07]} 40. Kg1 {[%clk 0:00:22]}  Nd3 {[%clk 0:00:06]} 41. Qc7+ {[%clk 0:00:18]}  Kd5 {[%clk 0:00:05]} 42. Qd7+ {[%clk 0:00:16]}  Kc5 {[%clk 0:00:03]} 43. Qe7+ {[%clk 0:00:11]}  Kc4 {[%clk 0:00:03]} 44. Qc7+ {[%clk 0:00:10]}  Kb3 {[%clk 0:00:02]} 45. Qb6+ {[%clk 0:00:09]}  Kc3 {[%clk 0:00:00]} 46. Qa5+ {[%clk 0:00:08]} 1-0


[Site "https://www.chess.com"]

[Event "Titled Tuesday Blitz July 4 Early 2023"]
[White "Itkis, Boris"]
[Black "Jaskolka, Tomasz"]
[WhiteFideId "1209167"]
[BlackFideId "1170791"]
[WhiteElo "2447"]
[BlackElo "2604"]
[Result "1-0"]
[Round "7"]
[TimeControl "180+2"]
[Date "2023.07.04"]
[WhiteClock "0:00:50"]
[BlackClock "0:00:11"]
[Board "96"]

1. c4 {[%clk 0:02:52]}  c6 {[%clk 0:02:55]} 2. Nf3 {[%clk 0:02:53]}  d5 {[%clk 0:02:55]} 3. g3 {[%clk 0:02:52]}  Nf6 {[%clk 0:02:56]} 4. Bg2 {[%clk 0:02:52]}  Bg4 {[%clk 0:02:53]} 5. Ne5 {[%clk 0:02:52]}  Bf5 {[%clk 0:02:51]} 6. cxd5 {[%clk 0:02:50]}  cxd5 {[%clk 0:02:51]} 7. Qb3 {[%clk 0:02:50]}  Qc7 {[%clk 0:02:45]} 8. Nc3 {[%clk 0:02:44]}  e6 {[%clk 0:02:18]} 9. O-O {[%clk 0:02:42]}  Qxe5 {[%clk 0:01:58]} 10. Qxb7 {[%clk 0:02:41]}  Bc5 {[%clk 0:01:58]} 11. Qxa8 {[%clk 0:02:37]}  Qc7 {[%clk 0:01:54]} 12. d4 {[%clk 0:02:31]}  O-O {[%clk 0:01:13]} 13. Bf4 {[%clk 0:02:24]}  Qd7 {[%clk 0:00:44]} 14. Bxb8 {[%clk 0:02:13]}  Bd6 {[%clk 0:00:40]} 15. Qxa7 {[%clk 0:02:13]}  Rxb8 {[%clk 0:00:38]} 16. Qxd7 {[%clk 0:02:13]}  Nxd7 {[%clk 0:00:39]} 17. b3 {[%clk 0:02:09]}  Ba3 {[%clk 0:00:37]} 18. e4 {[%clk 0:02:07]}  dxe4 {[%clk 0:00:34]} 19. Nxe4 {[%clk 0:02:08]}  Nb6 {[%clk 0:00:32]} 20. Rad1 {[%clk 0:01:54]}  Rd8 {[%clk 0:00:30]} 21. h3 {[%clk 0:01:50]}  h6 {[%clk 0:00:29]} 22. g4 {[%clk 0:01:50]}  Bg6 {[%clk 0:00:29]} 23. f4 {[%clk 0:01:47]}  Nd5 {[%clk 0:00:29]} 24. f5 {[%clk 0:01:46]}  exf5 {[%clk 0:00:28]} 25. gxf5 {[%clk 0:01:46]}  Bh5 {[%clk 0:00:29]} 26. Rde1 {[%clk 0:01:38]}  Bb4 {[%clk 0:00:27]} 27. Ng3 {[%clk 0:01:24]}  Bxe1 {[%clk 0:00:25]} 28. Rxe1 {[%clk 0:01:25]}  Nf4 {[%clk 0:00:21]} 29. Re4 {[%clk 0:01:09]}  Nxg2 {[%clk 0:00:16]} 30. Nxh5 {[%clk 0:01:08]}  g6 {[%clk 0:00:15]} 31. fxg6 {[%clk 0:01:03]}  f5 {[%clk 0:00:15]} 32. Re7 {[%clk 0:01:00]}  Rd6 {[%clk 0:00:15]} 33. Kxg2 {[%clk 0:00:58]}  Rxg6+ {[%clk 0:00:16]} 34. Kf3 {[%clk 0:00:59]}  Rd6 {[%clk 0:00:16]} 35. Ke3 {[%clk 0:00:56]}  f4+ {[%clk 0:00:15]} 36. Nxf4 {[%clk 0:00:55]}  h5 {[%clk 0:00:16]} 37. Re6 {[%clk 0:00:55]}  Rd7 {[%clk 0:00:14]} 38. a4 {[%clk 0:00:54]}  Rb7 {[%clk 0:00:14]} 39. a5 {[%clk 0:00:54]}  Rxb3+ {[%clk 0:00:15]} 40. Ke4 {[%clk 0:00:55]}  Kf7 {[%clk 0:00:15]} 41. a6 {[%clk 0:00:54]}  Ra3 {[%clk 0:00:15]} 42. Rb6 {[%clk 0:00:53]}  h4 {[%clk 0:00:16]} 43. Rb7+ {[%clk 0:00:52]}  Kf6 {[%clk 0:00:16]} 44. a7 {[%clk 0:00:53]}  Ra5 {[%clk 0:00:14]} 45. Nd5+ {[%clk 0:00:53]}  Ke6 {[%clk 0:00:13]} 46. Nc7+ {[%clk 0:00:50]}  Kd6 {[%clk 0:00:13]} 47. a8=Q {[%clk 0:00:50]}  Rxa8 {[%clk 0:00:07]} 48. Nxa8 {[%clk 0:00:51]}  Kc6 {[%clk 0:00:08]} 49. Rc7+ {[%clk 0:00:50]}  Kd6 {[%clk 0:00:07]} 50. Rc4 {[%clk 0:00:50]}  Ke6 {[%clk 0:00:08]} 51. d5+ {[%clk 0:00:51]}  Kd6 {[%clk 0:00:08]} 52. Rc6+ {[%clk 0:00:51]}  Kd7 {[%clk 0:00:09]} 53. Nb6+ {[%clk 0:00:51]}  Ke7 {[%clk 0:00:09]} 54. d6+ {[%clk 0:00:51]}  Ke6 {[%clk 0:00:09]} 55. d7+ {[%clk 0:00:52]}  Ke7 {[%clk 0:00:09]} 56. Rc8 {[%clk 0:00:50]}  Ke6 {[%clk 0:00:10]} 57. d8=Q {[%clk 0:00:50]}  Kf7 {[%clk 0:00:10]} 58. Qd7+ {[%clk 0:00:50]}  Kf6 {[%clk 0:00:10]} 59. Rc6+ {[%clk 0:00:50]}  Kg5 {[%clk 0:00:11]} 60. Qg4# {[%clk 0:00:50]} 1-0


[Site "https://www.chess.com"]

[Event "Titled Tuesday Blitz July 4 Early 2023"]
[White "Kashlinskaya, Alina"]
[Black "Zacurdajev, Dmitry"]
[WhiteFideId "4198026"]
[BlackFideId "4196309"]
[WhiteElo "2593"]
[BlackElo "2444"]
[Result "0-1"]
[Round "7"]
[TimeControl "180+2"]
[Date "2023.07.04"]
[WhiteClock "0:00:22"]
[BlackClock "0:00:11"]
[Board "97"]

1. c4 {[%clk 0:03:00]}  Nf6 {[%clk 0:02:59]} 2. d4 {[%clk 0:03:00]}  e6 {[%clk 0:02:59]} 3. Nc3 {[%clk 0:02:58]}  d5 {[%clk 0:02:59]} 4. Nf3 {[%clk 0:02:56]}  Be7 {[%clk 0:02:55]} 5. Bf4 {[%clk 0:02:51]}  O-O {[%clk 0:02:52]} 6. e3 {[%clk 0:02:51]}  Nbd7 {[%clk 0:02:52]} 7. c5 {[%clk 0:02:50]}  Nh5 {[%clk 0:02:52]} 8. Bd3 {[%clk 0:02:50]}  Nxf4 {[%clk 0:02:51]} 9. exf4 {[%clk 0:02:51]}  b6 {[%clk 0:02:52]} 10. b4 {[%clk 0:02:50]}  a5 {[%clk 0:02:53]} 11. a3 {[%clk 0:02:50]}  c6 {[%clk 0:02:53]} 12. O-O {[%clk 0:02:49]}  Qc7 {[%clk 0:02:54]} 13. Re1 {[%clk 0:02:49]}  Qxf4 {[%clk 0:02:53]} 14. b5 {[%clk 0:02:42]}  bxc5 {[%clk 0:02:41]} 15. bxc6 {[%clk 0:02:42]}  Nf6 {[%clk 0:02:31]} 16. Bb5 {[%clk 0:02:20]}  cxd4 {[%clk 0:02:02]} 17. Nxd4 {[%clk 0:02:17]}  Bc5 {[%clk 0:01:57]} 18. Nce2 {[%clk 0:02:16]}  Qh4 {[%clk 0:01:50]} 19. g3 {[%clk 0:01:57]}  Qh6 {[%clk 0:01:39]} 20. Qc1 {[%clk 0:01:21]}  Bxd4 {[%clk 0:01:24]} 21. Qxh6 {[%clk 0:01:20]}  Bxf2+ {[%clk 0:01:20]} 22. Kxf2 {[%clk 0:01:19]}  Ne4+ {[%clk 0:01:20]} 23. Ke3 {[%clk 0:01:12]}  gxh6 {[%clk 0:01:20]} 24. a4 {[%clk 0:01:10]}  Rd8 {[%clk 0:00:54]} 25. Rac1 {[%clk 0:01:07]}  e5 {[%clk 0:00:33]} 26. Red1 {[%clk 0:01:01]}  Be6 {[%clk 0:00:26]} 27. g4 {[%clk 0:00:50]}  Nf6 {[%clk 0:00:20]} 28. h3 {[%clk 0:00:50]}  d4+ {[%clk 0:00:17]} 29. Nxd4 {[%clk 0:00:44]}  exd4+ {[%clk 0:00:17]} 30. Rxd4 {[%clk 0:00:45]}  Nd5+ {[%clk 0:00:17]} 31. Ke4 {[%clk 0:00:43]}  Nc7 {[%clk 0:00:15]} 32. Rcd1 {[%clk 0:00:40]}  Rxd4+ {[%clk 0:00:11]} 33. Rxd4 {[%clk 0:00:41]}  Kf8 {[%clk 0:00:11]} 34. Ke5 {[%clk 0:00:34]}  Ke7 {[%clk 0:00:11]} 35. h4 {[%clk 0:00:32]}  f6+ {[%clk 0:00:12]} 36. Kf4 {[%clk 0:00:32]}  Rd8 {[%clk 0:00:12]} 37. Re4 {[%clk 0:00:26]}  Rd1 {[%clk 0:00:11]} 38. Bc4 {[%clk 0:00:25]}  Kd6 {[%clk 0:00:11]} 39. Bxe6 {[%clk 0:00:24]}  Nxe6+ {[%clk 0:00:11]} 40. Kf5 {[%clk 0:00:22]}  Rf1+ {[%clk 0:00:11]} 0-1


[Site "https://www.chess.com"]

[Event "Titled Tuesday Blitz July 4 Early 2023"]
[White "Janaszak, Dawid"]
[Black "Goncalves, Davi Sulzbacher"]
[WhiteFideId "1119206"]
[BlackFideId "2154510"]
[WhiteElo "2588"]
[BlackElo "2447"]
[Result "1-0"]
[Round "7"]
[TimeControl "180+2"]
[Date "2023.07.04"]
[WhiteClock "0:01:00"]
[BlackClock "0:00:00"]
[Board "98"]

1. e4 {[%clk 0:03:00]}  c6 {[%clk 0:02:46]} 2. d4 {[%clk 0:03:00]}  d5 {[%clk 0:02:44]} 3. exd5 {[%clk 0:03:01]}  cxd5 {[%clk 0:02:45]} 4. Bd3 {[%clk 0:03:01]}  Nf6 {[%clk 0:02:45]} 5. c3 {[%clk 0:03:01]}  e6 {[%clk 0:02:46]} 6. Bf4 {[%clk 0:02:59]}  Be7 {[%clk 0:02:47]} 7. Nf3 {[%clk 0:02:59]}  O-O {[%clk 0:02:47]} 8. O-O {[%clk 0:02:58]}  Nc6 {[%clk 0:02:48]} 9. Nbd2 {[%clk 0:02:59]}  Bd7 {[%clk 0:02:48]} 10. Qe2 {[%clk 0:02:57]}  Qb6 {[%clk 0:02:48]} 11. Rab1 {[%clk 0:02:56]}  Rfc8 {[%clk 0:02:48]} 12. h4 {[%clk 0:02:53]}  Be8 {[%clk 0:02:38]} 13. Ne5 {[%clk 0:02:47]}  Qd8 {[%clk 0:02:32]} 14. h5 {[%clk 0:02:46]}  Nd7 {[%clk 0:02:29]} 15. Ndf3 {[%clk 0:02:39]}  Ndxe5 {[%clk 0:02:14]} 16. dxe5 {[%clk 0:02:39]}  a5 {[%clk 0:02:01]} 17. Nh2 {[%clk 0:02:24]}  a4 {[%clk 0:02:00]} 18. Ng4 {[%clk 0:02:23]}  d4 {[%clk 0:01:54]} 19. Rfd1 {[%clk 0:02:21]}  a3 {[%clk 0:01:42]} 20. Qe4 {[%clk 0:02:15]}  g6 {[%clk 0:01:38]} 21. hxg6 {[%clk 0:02:15]}  hxg6 {[%clk 0:01:39]} 22. Bc4 {[%clk 0:01:50]}  axb2 {[%clk 0:01:24]} 23. cxd4 {[%clk 0:01:50]}  Nb4 {[%clk 0:01:05]} 24. Be2 {[%clk 0:01:45]}  Nxa2 {[%clk 0:00:59]} 25. Nf6+ {[%clk 0:01:32]}  Bxf6 {[%clk 0:00:43]} 26. exf6 {[%clk 0:01:33]}  Nc3 {[%clk 0:00:42]} 27. Qe5 {[%clk 0:01:33]}  Ra5 {[%clk 0:00:20]} 28. d5 {[%clk 0:01:30]}  Rxd5 {[%clk 0:00:18]} 29. Rxd5 {[%clk 0:01:13]}  Qxd5 {[%clk 0:00:18]} 30. Rxb2 {[%clk 0:01:11]}  Nxe2+ {[%clk 0:00:12]} 31. Qxe2 {[%clk 0:01:08]}  Qd4 {[%clk 0:00:10]} 32. Qe5 {[%clk 0:01:02]}  Qd1+ {[%clk 0:00:09]} 33. Kh2 {[%clk 0:01:02]}  Qh5+ {[%clk 0:00:05]} 34. Qxh5 {[%clk 0:01:03]}  gxh5 {[%clk 0:00:06]} 35. Rxb7 {[%clk 0:01:03]}  Kh7 {[%clk 0:00:06]} 36. Be5 {[%clk 0:01:02]}  Kg6 {[%clk 0:00:06]} 37. f4 {[%clk 0:01:03]}  Rc3 {[%clk 0:00:06]} 38. Rb8 {[%clk 0:01:02]}  Rc2 {[%clk 0:00:00]} 39. Rxe8 {[%clk 0:01:00]} 1-0


[Site "https://www.chess.com"]

[Event "Titled Tuesday Blitz July 4 Early 2023"]
[White "Streltsov, Alexey"]
[Black "Becerra, Juan David"]
[WhiteFideId "24104434"]
[BlackFideId "4404998"]
[WhiteElo "2442"]
[BlackElo "2574"]
[Result "1-0"]
[Round "7"]
[TimeControl "180+2"]
[Date "2023.07.04"]
[WhiteClock "0:00:39"]
[BlackClock "0:00:00"]
[Board "100"]

1. d4 {[%clk 0:03:00]}  d5 {[%clk 0:02:45]} 2. Bf4 {[%clk 0:03:01]}  Nf6 {[%clk 0:02:45]} 3. e3 {[%clk 0:03:02]}  Bg4 {[%clk 0:02:45]} 4. f3 {[%clk 0:03:01]}  Bh5 {[%clk 0:02:45]} 5. g4 {[%clk 0:03:01]}  Bg6 {[%clk 0:02:46]} 6. h4 {[%clk 0:03:02]}  h6 {[%clk 0:02:44]} 7. Bd3 {[%clk 0:03:01]}  Bxd3 {[%clk 0:02:43]} 8. Qxd3 {[%clk 0:03:02]}  e6 {[%clk 0:02:43]} 9. Nc3 {[%clk 0:03:02]}  Bd6 {[%clk 0:02:43]} 10. Nge2 {[%clk 0:03:02]}  Nc6 {[%clk 0:02:36]} 11. O-O-O {[%clk 0:02:59]}  Nd7 {[%clk 0:02:36]} 12. e4 {[%clk 0:02:52]}  Bxf4+ {[%clk 0:02:32]} 13. Nxf4 {[%clk 0:02:51]}  dxe4 {[%clk 0:02:28]} 14. fxe4 {[%clk 0:02:52]}  Nb6 {[%clk 0:02:27]} 15. d5 {[%clk 0:02:50]}  exd5 {[%clk 0:02:15]} 16. exd5 {[%clk 0:02:51]}  Ne5 {[%clk 0:02:13]} 17. Rhe1 {[%clk 0:02:49]}  Nd7 {[%clk 0:01:58]} 18. Qf5 {[%clk 0:02:13]}  O-O {[%clk 0:01:27]} 19. Rxe5 {[%clk 0:01:59]}  Nxe5 {[%clk 0:01:28]} 20. Qxe5 {[%clk 0:02:00]}  Re8 {[%clk 0:01:27]} 21. Qh5 {[%clk 0:01:55]}  Qf6 {[%clk 0:01:25]} 22. Nd3 {[%clk 0:01:53]}  Rad8 {[%clk 0:01:21]} 23. g5 {[%clk 0:01:53]}  Qf5 {[%clk 0:01:16]} 24. Rg1 {[%clk 0:01:41]}  c6 {[%clk 0:01:08]} 25. Qg4 {[%clk 0:01:33]}  Qxg4 {[%clk 0:01:02]} 26. Rxg4 {[%clk 0:01:34]}  hxg5 {[%clk 0:01:03]} 27. Rxg5 {[%clk 0:01:34]}  f6 {[%clk 0:00:57]} 28. Rf5 {[%clk 0:01:34]}  cxd5 {[%clk 0:00:51]} 29. Nxd5 {[%clk 0:01:35]}  Kf7 {[%clk 0:00:51]} 30. N5f4 {[%clk 0:01:34]}  g6 {[%clk 0:00:43]} 31. Rc5 {[%clk 0:01:34]}  Rd7 {[%clk 0:00:40]} 32. b4 {[%clk 0:01:30]}  Re4 {[%clk 0:00:40]} 33. Kb2 {[%clk 0:01:26]}  b6 {[%clk 0:00:40]} 34. Rc8 {[%clk 0:01:26]}  g5 {[%clk 0:00:37]} 35. hxg5 {[%clk 0:01:21]}  fxg5 {[%clk 0:00:38]} 36. Nh5 {[%clk 0:01:12]}  Re3 {[%clk 0:00:31]} 37. Rh8 {[%clk 0:01:03]}  Kg6 {[%clk 0:00:30]} 38. Ng3 {[%clk 0:01:02]}  Rdxd3 {[%clk 0:00:27]} 39. cxd3 {[%clk 0:01:02]}  Rxg3 {[%clk 0:00:27]} 40. Kc3 {[%clk 0:00:58]}  Rf3 {[%clk 0:00:25]} 41. a4 {[%clk 0:00:50]}  Rf7 {[%clk 0:00:22]} 42. d4 {[%clk 0:00:44]}  Rc7+ {[%clk 0:00:22]} 43. Kd3 {[%clk 0:00:43]}  Kf5 {[%clk 0:00:22]} 44. Rg8 {[%clk 0:00:39]}  a5 {[%clk 0:00:20]} 45. b5 {[%clk 0:00:38]}  Rc1 {[%clk 0:00:19]} 46. Rb8 {[%clk 0:00:38]}  Ra1 {[%clk 0:00:17]} 47. Rxb6 {[%clk 0:00:37]}  Rxa4 {[%clk 0:00:17]} 48. Rb8 {[%clk 0:00:38]}  g4 {[%clk 0:00:17]} 49. b6 {[%clk 0:00:36]}  Rb4 {[%clk 0:00:17]} 50. b7 {[%clk 0:00:37]}  a4 {[%clk 0:00:15]} 51. Rf8+ {[%clk 0:00:37]}  Kg5 {[%clk 0:00:15]} 52. b8=Q {[%clk 0:00:38]}  Rxb8 {[%clk 0:00:15]} 53. Rxb8 {[%clk 0:00:39]}  g3 {[%clk 0:00:00]} 54. Ke2 {[%clk 0:00:39]} 1-0


[Site "https://www.chess.com"]

[Event "Titled Tuesday Blitz July 4 Early 2023"]
[White "Vivas Zamora, Fabian Ernesto"]
[Black "Arat, Ufuk Sezen"]
[WhiteFideId "3902480"]
[BlackFideId "6309089"]
[WhiteElo "2435"]
[BlackElo "2572"]
[Result "0-1"]
[Round "7"]
[TimeControl "180+2"]
[Date "2023.07.04"]
[WhiteClock "0:00:02"]
[BlackClock "0:00:13"]
[Board "101"]

1. e4 {[%clk 0:02:56]}  c5 {[%clk 0:03:00]} 2. Nf3 {[%clk 0:02:54]}  e6 {[%clk 0:03:00]} 3. d4 {[%clk 0:02:55]}  cxd4 {[%clk 0:03:01]} 4. Nxd4 {[%clk 0:02:56]}  Nc6 {[%clk 0:03:02]} 5. Nc3 {[%clk 0:02:56]}  Qc7 {[%clk 0:03:03]} 6. Be3 {[%clk 0:02:56]}  a6 {[%clk 0:03:03]} 7. Qf3 {[%clk 0:02:57]}  Ne5 {[%clk 0:03:04]} 8. Qg3 {[%clk 0:02:57]}  h5 {[%clk 0:03:04]} 9. O-O-O {[%clk 0:02:53]}  h4 {[%clk 0:03:03]} 10. Qh3 {[%clk 0:02:53]}  b5 {[%clk 0:02:57]} 11. f4 {[%clk 0:02:32]}  Nc4 {[%clk 0:02:57]} 12. Bxc4 {[%clk 0:02:33]}  Qxc4 {[%clk 0:02:58]} 13. Kb1 {[%clk 0:02:19]}  Bb7 {[%clk 0:02:54]} 14. f5 {[%clk 0:02:10]}  Nf6 {[%clk 0:02:51]} 15. e5 {[%clk 0:02:00]}  Nd5 {[%clk 0:02:48]} 16. Nxd5 {[%clk 0:01:59]}  Bxd5 {[%clk 0:02:48]} 17. b3 {[%clk 0:01:56]}  Qc7 {[%clk 0:02:48]} 18. fxe6 {[%clk 0:01:52]}  dxe6 {[%clk 0:02:46]} 19. Nf5 {[%clk 0:01:21]}  Be4 {[%clk 0:02:41]} 20. Nd4 {[%clk 0:01:11]}  Be7 {[%clk 0:02:41]} 21. Rhe1 {[%clk 0:01:03]}  Rc8 {[%clk 0:02:38]} 22. Re2 {[%clk 0:00:57]}  Qxe5 {[%clk 0:02:38]} 23. Bc1 {[%clk 0:00:49]}  O-O {[%clk 0:02:33]} 24. Bb2 {[%clk 0:00:27]}  Qh5 {[%clk 0:02:16]} 25. g4 {[%clk 0:00:20]}  Qh7 {[%clk 0:02:14]} 26. Rde1 {[%clk 0:00:19]}  Bg6 {[%clk 0:02:11]} 27. Nf5 {[%clk 0:00:10]}  exf5 {[%clk 0:02:05]} 28. Rxe7 {[%clk 0:00:10]}  fxg4 {[%clk 0:02:05]} 29. Qxg4 {[%clk 0:00:11]}  Rxc2 {[%clk 0:02:03]} 30. Ka1 {[%clk 0:00:11]}  Bf5 {[%clk 0:01:38]} 31. Qd4 {[%clk 0:00:09]}  Rcc8 {[%clk 0:01:17]} 32. Rg1 {[%clk 0:00:08]}  Bg6 {[%clk 0:01:17]} 33. Rd7 {[%clk 0:00:04]}  Rfe8 {[%clk 0:01:17]} 34. a3 {[%clk 0:00:04]}  h3 {[%clk 0:01:16]} 35. Ka2 {[%clk 0:00:03]}  a5 {[%clk 0:01:15]} 36. Qd6 {[%clk 0:00:03]}  a4 {[%clk 0:01:11]} 37. b4 {[%clk 0:00:02]}  Qh6 {[%clk 0:00:31]} 38. Qd5 {[%clk 0:00:02]}  Rc2 {[%clk 0:00:22]} 39. Ka1 {[%clk 0:00:02]}  Rce2 {[%clk 0:00:17]} 40. Rxf7 {[%clk 0:00:01]}  Bxf7 {[%clk 0:00:16]} 41. Bxg7 {[%clk 0:00:01]}  Bxd5 {[%clk 0:00:15]} 42. Bxh6+ {[%clk 0:00:01]}  Rg2 {[%clk 0:00:13]} 43. Bc1 {[%clk 0:00:02]} 0-1


[Site "https://www.chess.com"]